[Event "Titled Tuesday Blitz May 4 2021"]
[White "Meissner, Felix"]
[Black "Zhou, Qiyu"]
[WhiteFideId "24671827"]
[BlackFideId "505161"]
[WhiteElo "2390"]
[BlackElo "1925"]
[Result "1-0"]
[Round "03"]
[TimeControl "180+1"]
[Date "2021.05.04"]
[WhiteClock "0:02:18"]
[BlackClock "0:01:51"]

1. e4 {[%clk 0:03:00]}  c5 {[%clk 0:02:53]} 2. Nf3 {[%clk 0:03:00]}  d6 {[%clk 0:02:53]} 3. d4 {[%clk 0:03:00]}  cxd4 {[%clk 0:02:54]} 4. Nxd4 {[%clk 0:03:01]}  Nf6 {[%clk 0:02:54]} 5. f3 {[%clk 0:03:01]}  Nc6 {[%clk 0:02:53]} 6. c4 {[%clk 0:03:01]}  g6 {[%clk 0:02:49]} 7. Nc2 {[%clk 0:03:01]}  Bg7 {[%clk 0:02:49]} 8. Nc3 {[%clk 0:03:01]}  O-O {[%clk 0:02:49]} 9. Be3 {[%clk 0:03:02]}  b6 {[%clk 0:02:48]} 10. Qd2 {[%clk 0:03:01]}  Bb7 {[%clk 0:02:49]} 11. Be2 {[%clk 0:03:02]}  Rc8 {[%clk 0:02:48]} 12. O-O {[%clk 0:03:02]}  Ne5 {[%clk 0:02:39]} 13. b3 {[%clk 0:03:00]}  a6 {[%clk 0:02:35]} 14. Rac1 {[%clk 0:02:59]}  Qc7 {[%clk 0:02:32]} 15. Nb4 {[%clk 0:02:57]}  e6 {[%clk 0:02:27]} 16. Rfd1 {[%clk 0:02:56]}  Rfd8 {[%clk 0:02:27]} 17. Bf1 {[%clk 0:02:54]}  Nc6 {[%clk 0:02:22]} 18. Nxc6 {[%clk 0:02:50]}  Bxc6 {[%clk 0:02:21]} 19. Nd5 {[%clk 0:02:46]}  exd5 {[%clk 0:02:12]} 20. cxd5 {[%clk 0:02:45]}  Qb7 {[%clk 0:02:10]} 21. dxc6 {[%clk 0:02:45]}  Rxc6 {[%clk 0:02:11]} 22. Bxa6 {[%clk 0:02:40]}  Qc7 {[%clk 0:02:11]} 23. Rxc6 {[%clk 0:02:38]}  Qxc6 {[%clk 0:02:12]} 24. Rc1 {[%clk 0:02:36]}  Qa8 {[%clk 0:02:04]} 25. Bc4 {[%clk 0:02:31]}  Qb7 {[%clk 0:01:57]} 26. a4 {[%clk 0:02:27]}  d5 {[%clk 0:01:50]} 27. exd5 {[%clk 0:02:21]}  Nxd5 {[%clk 0:01:51]} 28. Rd1 {[%clk 0:02:18]} 1-0


[Site "https://www.chess.com"]

[Event "Titled Tuesday Blitz May 4 2021"]
[White "Mekhitarian, Krikor Sevag"]
[Black "Peralta, Eduardo"]
[WhiteFideId "2107660"]
[BlackFideId "3700062"]
[WhiteElo "2598"]
[BlackElo "2205"]
[Result "1/2-1/2"]
[Round "03"]
[TimeControl "180+1"]
[Date "2021.05.04"]
[WhiteClock "0:00:09"]
[BlackClock "0:00:13"]

1. e4 {[%clk 0:02:56]}  c5 {[%clk 0:02:59]} 2. Nf3 {[%clk 0:02:54]}  Nc6 {[%clk 0:03:00]} 3. Bb5 {[%clk 0:02:51]}  g6 {[%clk 0:02:59]} 4. O-O {[%clk 0:02:49]}  Bg7 {[%clk 0:02:59]} 5. Re1 {[%clk 0:02:49]}  Nf6 {[%clk 0:02:59]} 6. c3 {[%clk 0:02:48]}  O-O {[%clk 0:02:58]} 7. h3 {[%clk 0:02:49]}  a6 {[%clk 0:02:53]} 8. Bxc6 {[%clk 0:02:43]}  dxc6 {[%clk 0:02:52]} 9. d4 {[%clk 0:02:41]}  cxd4 {[%clk 0:02:51]} 10. cxd4 {[%clk 0:02:29]}  c5 {[%clk 0:02:50]} 11. d5 {[%clk 0:01:58]}  b5 {[%clk 0:02:43]} 12. Nc3 {[%clk 0:01:35]}  Bb7 {[%clk 0:02:40]} 13. Bf4 {[%clk 0:01:15]}  Nd7 {[%clk 0:02:38]} 14. Rc1 {[%clk 0:01:14]}  Nb6 {[%clk 0:02:37]} 15. b3 {[%clk 0:01:12]}  Rc8 {[%clk 0:02:35]} 16. Qd2 {[%clk 0:01:11]}  b4 {[%clk 0:02:24]} 17. Nd1 {[%clk 0:01:06]}  a5 {[%clk 0:02:20]} 18. Be3 {[%clk 0:01:00]}  Nd7 {[%clk 0:02:15]} 19. Nb2 {[%clk 0:00:59]}  Ba6 {[%clk 0:02:11]} 20. Nc4 {[%clk 0:00:56]}  a4 {[%clk 0:02:00]} 21. Bh6 {[%clk 0:00:49]}  Bxc4 {[%clk 0:01:55]} 22. Rxc4 {[%clk 0:00:48]}  axb3 {[%clk 0:01:26]} 23. axb3 {[%clk 0:00:45]}  Qa5 {[%clk 0:01:26]} 24. Bxg7 {[%clk 0:00:43]}  Kxg7 {[%clk 0:01:27]} 25. Qb2+ {[%clk 0:00:41]}  Kg8 {[%clk 0:01:24]} 26. Ra1 {[%clk 0:00:41]}  Qc7 {[%clk 0:01:23]} 27. Rac1 {[%clk 0:00:41]}  Qf4 {[%clk 0:01:19]} 28. e5 {[%clk 0:00:27]}  Qf5 {[%clk 0:01:18]} 29. Qe2 {[%clk 0:00:27]}  Nb6 {[%clk 0:01:09]} 30. Rxc5 {[%clk 0:00:24]}  Rxc5 {[%clk 0:01:08]} 31. Rxc5 {[%clk 0:00:25]}  Qb1+ {[%clk 0:01:08]} 32. Kh2 {[%clk 0:00:25]}  Qxb3 {[%clk 0:01:08]} 33. e6 {[%clk 0:00:24]}  f6 {[%clk 0:01:04]} 34. Qb5 {[%clk 0:00:23]}  Na4 {[%clk 0:01:00]} 35. Rc7 {[%clk 0:00:22]}  Nc3 {[%clk 0:00:58]} 36. Qd7 {[%clk 0:00:21]}  Nxd5 {[%clk 0:00:57]} 37. Rc5 {[%clk 0:00:19]}  Nf4 {[%clk 0:00:53]} 38. Qxe7 {[%clk 0:00:17]}  Qxe6 {[%clk 0:00:52]} 39. Qxe6+ {[%clk 0:00:13]}  Nxe6 {[%clk 0:00:53]} 40. Rb5 {[%clk 0:00:14]}  Rc8 {[%clk 0:00:48]} 41. Rxb4 {[%clk 0:00:14]}  Rc2 {[%clk 0:00:48]} 42. Kg3 {[%clk 0:00:11]}  g5 {[%clk 0:00:44]} 43. h4 {[%clk 0:00:10]}  h6 {[%clk 0:00:36]} 44. hxg5 {[%clk 0:00:09]}  hxg5 {[%clk 0:00:36]} 45. Nd4 {[%clk 0:00:06]}  Rc3+ {[%clk 0:00:26]} 46. f3 {[%clk 0:00:06]}  Nxd4 {[%clk 0:00:20]} 47. Rxd4 {[%clk 0:00:06]}  Kf7 {[%clk 0:00:21]} 48. Kg4 {[%clk 0:00:04]}  Kg6 {[%clk 0:00:21]} 49. Kg3 {[%clk 0:00:05]}  Rc2 {[%clk 0:00:21]} 50. Re4 {[%clk 0:00:05]}  Rd2 {[%clk 0:00:21]} 51. Ra4 {[%clk 0:00:05]}  Kf5 {[%clk 0:00:21]} 52. Ra5+ {[%clk 0:00:05]}  Kg6 {[%clk 0:00:21]} 53. Ra4 {[%clk 0:00:06]}  Kh5 {[%clk 0:00:21]} 54. Ra8 {[%clk 0:00:06]}  Rd4 {[%clk 0:00:18]} 55. Rh8+ {[%clk 0:00:06]}  Kg6 {[%clk 0:00:19]} 56. Rg8+ {[%clk 0:00:07]}  Kf5 {[%clk 0:00:19]} 57. Ra8 {[%clk 0:00:07]}  Rd5 {[%clk 0:00:19]} 58. Ra4 {[%clk 0:00:07]}  Ke5 {[%clk 0:00:19]} 59. Re4+ {[%clk 0:00:07]}  Kf5 {[%clk 0:00:19]} 60. Re1 {[%clk 0:00:07]}  Rd2 {[%clk 0:00:18]} 61. Rh1 {[%clk 0:00:07]}  Ke5 {[%clk 0:00:18]} 62. Rh6 {[%clk 0:00:06]}  Kf5 {[%clk 0:00:18]} 63. Rh8 {[%clk 0:00:06]}  Ke6 {[%clk 0:00:17]} 64. Re8+ {[%clk 0:00:06]}  Kf7 {[%clk 0:00:18]} 65. Ra8 {[%clk 0:00:07]}  Kg6 {[%clk 0:00:18]} 66. Ra6 {[%clk 0:00:07]}  Rc2 {[%clk 0:00:18]} 67. Kh3 {[%clk 0:00:07]}  Rd2 {[%clk 0:00:18]} 68. Ra5 {[%clk 0:00:07]}  Re2 {[%clk 0:00:18]} 69. Ra1 {[%clk 0:00:07]}  Rd2 {[%clk 0:00:18]} 70. Rf1 {[%clk 0:00:07]}  Kf5 {[%clk 0:00:18]} 71. Re1 {[%clk 0:00:07]}  Rc2 {[%clk 0:00:17]} 72. Kg3 {[%clk 0:00:08]}  Rb2 {[%clk 0:00:17]} 73. Re4 {[%clk 0:00:08]}  Rc2 {[%clk 0:00:17]} 74. Rb4 {[%clk 0:00:08]}  Rd2 {[%clk 0:00:17]} 75. Rb5+ {[%clk 0:00:08]}  Kg6 {[%clk 0:00:17]} 76. Kh3 {[%clk 0:00:09]}  Re2 {[%clk 0:00:17]} 77. g3 {[%clk 0:00:09]}  Rd2 {[%clk 0:00:17]} 78. Kg4 {[%clk 0:00:06]}  Rd4+ {[%clk 0:00:16]} 79. f4 {[%clk 0:00:06]}  gxf4 {[%clk 0:00:15]} 80. gxf4 {[%clk 0:00:07]}  Rc4 {[%clk 0:00:14]} 81. Ra5 {[%clk 0:00:08]}  Rd4 {[%clk 0:00:13]} 82. Ra8 {[%clk 0:00:08]}  Rc4 {[%clk 0:00:12]} 83. Rg8+ {[%clk 0:00:07]}  Kf7 {[%clk 0:00:12]} 84. Rh8 {[%clk 0:00:08]}  Kg6 {[%clk 0:00:12]} 85. Rg8+ {[%clk 0:00:08]}  Kf7 {[%clk 0:00:13]} 86. Ra8 {[%clk 0:00:09]}  Kg6 {[%clk 0:00:13]} 87. Rg8+ {[%clk 0:00:09]} 1/2-1/2


[Site "https://www.chess.com"]

[Event "Titled Tuesday Blitz May 4 2021"]
[White "Melkevik, Johannes"]
[Black "Altman, Joshua"]
[WhiteFideId "1501836"]
[BlackFideId "426210"]
[WhiteElo "1727"]
[BlackElo "1932"]
[Result "0-1"]
[Round "03"]
[TimeControl "180+1"]
[Date "2021.05.04"]
[WhiteClock "0:00:16"]
[BlackClock "0:01:00"]

1. d4 {[%clk 0:02:59]}  e6 {[%clk 0:03:00]} 2. Nf3 {[%clk 0:02:59]}  Nf6 {[%clk 0:03:00]} 3. g3 {[%clk 0:02:59]}  b6 {[%clk 0:03:00]} 4. Bg2 {[%clk 0:02:59]}  Bb7 {[%clk 0:03:00]} 5. O-O {[%clk 0:03:00]}  Be7 {[%clk 0:02:59]} 6. c4 {[%clk 0:03:00]}  O-O {[%clk 0:02:59]} 7. Nc3 {[%clk 0:02:59]}  Ne4 {[%clk 0:02:59]} 8. Qc2 {[%clk 0:02:41]}  Nxc3 {[%clk 0:02:53]} 9. bxc3 {[%clk 0:02:40]}  f5 {[%clk 0:02:45]} 10. Nd2 {[%clk 0:02:27]}  Bxg2 {[%clk 0:02:43]} 11. Kxg2 {[%clk 0:02:28]}  d6 {[%clk 0:02:40]} 12. e4 {[%clk 0:02:28]}  f4 {[%clk 0:02:32]} 13. Nf3 {[%clk 0:02:23]}  Nd7 {[%clk 0:02:18]} 14. Bxf4 {[%clk 0:02:14]}  Qe8 {[%clk 0:02:17]} 15. Ng5 {[%clk 0:01:45]}  Qg6 {[%clk 0:02:08]} 16. d5 {[%clk 0:01:35]}  Bxg5 {[%clk 0:01:53]} 17. Bxg5 {[%clk 0:01:19]}  Qxg5 {[%clk 0:01:51]} 18. f4 {[%clk 0:01:19]}  Qg6 {[%clk 0:01:47]} 19. Rae1 {[%clk 0:00:56]}  exd5 {[%clk 0:01:40]} 20. cxd5 {[%clk 0:00:55]}  Rae8 {[%clk 0:01:40]} 21. Kh1 {[%clk 0:00:47]}  Nf6 {[%clk 0:01:31]} 22. Qg2 {[%clk 0:00:25]}  Nxe4 {[%clk 0:01:11]} 23. f5 {[%clk 0:00:25]}  Rxf5 {[%clk 0:01:08]} 24. Rxf5 {[%clk 0:00:16]}  Qxf5 {[%clk 0:01:06]} 25. g4 {[%clk 0:00:16]}  Nf2+ {[%clk 0:01:00]} 0-1


[Site "https://www.chess.com"]

[Event "Titled Tuesday Blitz May 4 2021"]
[White "Minero Pineda, Sergio"]
[Black "Can, Emre"]
[WhiteFideId "6500374"]
[BlackFideId "6302181"]
[WhiteElo "2384"]
[BlackElo "2503"]
[Result "1/2-1/2"]
[Round "03"]
[TimeControl "180+1"]
[Date "2021.05.04"]
[WhiteClock "0:00:10"]
[BlackClock "0:00:06"]

1. d4 {[%clk 0:03:00]}  g6 {[%clk 0:02:59]} 2. c4 {[%clk 0:02:59]}  Bg7 {[%clk 0:03:00]} 3. Nf3 {[%clk 0:02:57]}  d6 {[%clk 0:02:53]} 4. Nc3 {[%clk 0:02:56]}  Nf6 {[%clk 0:02:49]} 5. g3 {[%clk 0:02:56]}  O-O {[%clk 0:02:47]} 6. Bg2 {[%clk 0:02:56]}  Nc6 {[%clk 0:02:45]} 7. O-O {[%clk 0:02:55]}  Bf5 {[%clk 0:02:45]} 8. d5 {[%clk 0:02:54]}  Na5 {[%clk 0:02:24]} 9. Nd2 {[%clk 0:02:53]}  c5 {[%clk 0:02:23]} 10. e4 {[%clk 0:02:52]}  Bd7 {[%clk 0:02:21]} 11. Qc2 {[%clk 0:02:52]}  a6 {[%clk 0:02:18]} 12. b3 {[%clk 0:02:52]}  b5 {[%clk 0:02:18]} 13. Bb2 {[%clk 0:02:52]}  Rb8 {[%clk 0:02:18]} 14. Rab1 {[%clk 0:02:50]}  Ng4 {[%clk 0:02:15]} 15. h3 {[%clk 0:02:43]}  Nh6 {[%clk 0:01:59]} 16. Nd1 {[%clk 0:02:36]}  f5 {[%clk 0:01:47]} 17. Bxg7 {[%clk 0:02:33]}  Kxg7 {[%clk 0:01:48]} 18. Qc3+ {[%clk 0:02:22]}  Kg8 {[%clk 0:01:47]} 19. e5 {[%clk 0:02:21]}  dxe5 {[%clk 0:01:36]} 20. Qxe5 {[%clk 0:02:19]}  bxc4 {[%clk 0:01:32]} 21. Qf4 {[%clk 0:02:03]}  Nf7 {[%clk 0:01:27]} 22. bxc4 {[%clk 0:01:59]}  Rxb1 {[%clk 0:01:25]} 23. Nxb1 {[%clk 0:01:59]}  Qb8 {[%clk 0:01:25]} 24. Qc1 {[%clk 0:01:43]}  Nd6 {[%clk 0:01:13]} 25. Nd2 {[%clk 0:01:41]}  Qb4 {[%clk 0:01:09]} 26. Ne3 {[%clk 0:01:33]}  Rb8 {[%clk 0:01:05]} 27. Re1 {[%clk 0:01:30]}  Qb2 {[%clk 0:01:01]} 28. Qd1 {[%clk 0:01:28]}  Qxa2 {[%clk 0:00:51]} 29. Nef1 {[%clk 0:01:17]}  Re8 {[%clk 0:00:45]} 30. h4 {[%clk 0:01:08]}  Naxc4 {[%clk 0:00:44]} 31. h5 {[%clk 0:01:04]}  Nxd2 {[%clk 0:00:35]} 32. Nxd2 {[%clk 0:01:02]}  Qa4 {[%clk 0:00:35]} 33. Qc1 {[%clk 0:00:53]}  Qd4 {[%clk 0:00:32]} 34. Nf3 {[%clk 0:00:49]}  Qf6 {[%clk 0:00:30]} 35. Qxc5 {[%clk 0:00:41]}  Kg7 {[%clk 0:00:18]} 36. Ne5 {[%clk 0:00:35]}  Bb5 {[%clk 0:00:16]} 37. Nc6 {[%clk 0:00:23]}  f4 {[%clk 0:00:14]} 38. Re6 {[%clk 0:00:21]}  Qf7 {[%clk 0:00:11]} 39. hxg6 {[%clk 0:00:20]}  hxg6 {[%clk 0:00:11]} 40. Ne5 {[%clk 0:00:20]}  Qf5 {[%clk 0:00:08]} 41. Rxg6+ {[%clk 0:00:20]}  Kh7 {[%clk 0:00:07]} 42. Re6 {[%clk 0:00:19]}  fxg3 {[%clk 0:00:07]} 43. fxg3 {[%clk 0:00:18]}  Qb1+ {[%clk 0:00:06]} 44. Kh2 {[%clk 0:00:17]}  Kg7 {[%clk 0:00:05]} 45. Rg6+ {[%clk 0:00:16]}  Kh7 {[%clk 0:00:05]} 46. Qd4 {[%clk 0:00:14]}  Qxg6 {[%clk 0:00:05]} 47. Nxg6 {[%clk 0:00:14]}  Kxg6 {[%clk 0:00:05]} 48. Qg4+ {[%clk 0:00:14]}  Kf7 {[%clk 0:00:05]} 49. Qe6+ {[%clk 0:00:14]}  Kg7 {[%clk 0:00:05]} 50. Bh3 {[%clk 0:00:14]}  a5 {[%clk 0:00:05]} 51. Bg4 {[%clk 0:00:13]}  a4 {[%clk 0:00:04]} 52. Bh5 {[%clk 0:00:13]}  Rh8 {[%clk 0:00:04]} 53. Qg6+ {[%clk 0:00:13]}  Kf8 {[%clk 0:00:05]} 54. Kg2 {[%clk 0:00:11]}  Bc4 {[%clk 0:00:05]} 55. Qg5 {[%clk 0:00:10]}  a3 {[%clk 0:00:04]} 56. Qf4+ {[%clk 0:00:10]}  Kg7 {[%clk 0:00:05]} 57. Qg5+ {[%clk 0:00:10]}  Kf8 {[%clk 0:00:05]} 58. Qf4+ {[%clk 0:00:10]}  Kg7 {[%clk 0:00:06]} 59. Qg5+ {[%clk 0:00:10]}  Kf8 {[%clk 0:00:06]} 1/2-1/2


[Site "https://www.chess.com"]

[Event "Titled Tuesday Blitz May 4 2021"]
[White "Moore, Nicholas"]
[Black "Villegas, Pierre"]
[WhiteFideId "4303709"]
[BlackFideId "654183"]
[WhiteElo "2358"]
[BlackElo "2411"]
[Result "0-1"]
[Round "03"]
[TimeControl "180+1"]
[Date "2021.05.04"]
[WhiteClock "0:00:39"]
[BlackClock "0:00:22"]

1. d4 {[%clk 0:03:00]}  d5 {[%clk 0:02:59]} 2. c4 {[%clk 0:03:00]}  e6 {[%clk 0:03:00]} 3. Nf3 {[%clk 0:02:59]}  Nf6 {[%clk 0:03:00]} 4. g3 {[%clk 0:02:59]}  dxc4 {[%clk 0:02:59]} 5. Bg2 {[%clk 0:02:58]}  Bd7 {[%clk 0:02:59]} 6. Ne5 {[%clk 0:02:54]}  Bc6 {[%clk 0:03:00]} 7. Nxc6 {[%clk 0:02:53]}  Nxc6 {[%clk 0:03:01]} 8. e3 {[%clk 0:02:52]}  Qd7 {[%clk 0:03:00]} 9. Qa4 {[%clk 0:02:49]}  Nb4 {[%clk 0:03:00]} 10. Qxd7+ {[%clk 0:02:36]}  Kxd7 {[%clk 0:03:00]} 11. Na3 {[%clk 0:02:35]}  Nd3+ {[%clk 0:02:59]} 12. Ke2 {[%clk 0:02:33]}  Bxa3 {[%clk 0:02:38]} 13. bxa3 {[%clk 0:02:29]}  c6 {[%clk 0:02:38]} 14. a4 {[%clk 0:02:25]}  Nd5 {[%clk 0:02:38]} 15. Bd2 {[%clk 0:02:16]}  f5 {[%clk 0:02:37]} 16. Rab1 {[%clk 0:02:14]}  Rab8 {[%clk 0:02:33]} 17. f3 {[%clk 0:02:12]}  b5 {[%clk 0:02:23]} 18. e4 {[%clk 0:02:10]}  Nf6 {[%clk 0:02:15]} 19. Ke3 {[%clk 0:01:42]}  e5 {[%clk 0:01:37]} 20. dxe5 {[%clk 0:01:38]}  Nxe5 {[%clk 0:01:34]} 21. Bc3 {[%clk 0:01:30]}  Rhe8 {[%clk 0:01:26]} 22. Bxe5 {[%clk 0:01:24]}  Rxe5 {[%clk 0:01:26]} 23. Rhd1+ {[%clk 0:01:23]}  Kc7 {[%clk 0:01:23]} 24. f4 {[%clk 0:01:19]}  Ree8 {[%clk 0:01:17]} 25. e5 {[%clk 0:01:17]}  Ng4+ {[%clk 0:01:05]} 26. Kd4 {[%clk 0:01:17]}  Nf2 {[%clk 0:00:57]} 27. Rf1 {[%clk 0:01:01]}  Red8+ {[%clk 0:00:56]} 28. Kc3 {[%clk 0:00:59]}  Nd3 {[%clk 0:00:50]} 29. Rfd1 {[%clk 0:00:54]}  a6 {[%clk 0:00:50]} 30. Bf1 {[%clk 0:00:53]}  Nf2 {[%clk 0:00:48]} 31. Rxd8 {[%clk 0:00:50]}  Rxd8 {[%clk 0:00:49]} 32. axb5 {[%clk 0:00:50]}  cxb5 {[%clk 0:00:46]} 33. a4 {[%clk 0:00:50]}  Kc6 {[%clk 0:00:42]} 34. axb5+ {[%clk 0:00:50]}  axb5 {[%clk 0:00:42]} 35. Kb4 {[%clk 0:00:50]}  Nd3+ {[%clk 0:00:42]} 36. Bxd3 {[%clk 0:00:47]}  Rxd3 {[%clk 0:00:40]} 37. Rb2 {[%clk 0:00:40]}  Kd5 {[%clk 0:00:22]} 38. Kxb5 {[%clk 0:00:39]}  Rb3+ {[%clk 0:00:22]} 0-1


[Site "https://www.chess.com"]

[Event "Titled Tuesday Blitz May 4 2021"]
[White "Mortazavi, Ali"]
[Black "Smith, Tom"]
[WhiteFideId "401323"]
[BlackFideId "421820"]
[WhiteElo "2339"]
[BlackElo "2327"]
[Result "1-0"]
[Round "03"]
[TimeControl "180+1"]
[Date "2021.05.04"]
[WhiteClock "0:00:48"]
[BlackClock "0:00:01"]

1. Nf3 {[%clk 0:03:00]}  d6 {[%clk 0:02:56]} 2. e4 {[%clk 0:02:59]}  e5 {[%clk 0:02:54]} 3. d4 {[%clk 0:02:59]}  exd4 {[%clk 0:02:52]} 4. Qxd4 {[%clk 0:02:54]}  Nc6 {[%clk 0:02:51]} 5. Bb5 {[%clk 0:02:54]}  Bd7 {[%clk 0:02:50]} 6. Bxc6 {[%clk 0:02:51]}  Bxc6 {[%clk 0:02:50]} 7. Nc3 {[%clk 0:02:51]}  Nf6 {[%clk 0:02:49]} 8. O-O {[%clk 0:02:46]}  Be7 {[%clk 0:02:48]} 9. b3 {[%clk 0:02:45]}  O-O {[%clk 0:02:45]} 10. Bb2 {[%clk 0:02:46]}  Nh5 {[%clk 0:02:26]} 11. Nd5 {[%clk 0:02:40]}  Bxd5 {[%clk 0:02:25]} 12. Qxd5 {[%clk 0:02:36]}  Bf6 {[%clk 0:02:09]} 13. Bxf6 {[%clk 0:02:22]}  Nxf6 {[%clk 0:02:10]} 14. Qxb7 {[%clk 0:02:22]}  Re8 {[%clk 0:02:09]} 15. Rfe1 {[%clk 0:02:19]}  a5 {[%clk 0:02:05]} 16. Rad1 {[%clk 0:02:01]}  Rb8 {[%clk 0:01:48]} 17. Qc6 {[%clk 0:02:01]}  Rb6 {[%clk 0:01:47]} 18. Qa4 {[%clk 0:01:54]}  Rb4 {[%clk 0:01:39]} 19. Qxa5 {[%clk 0:01:52]}  Rbxe4 {[%clk 0:01:38]} 20. Rxe4 {[%clk 0:01:49]}  Rxe4 {[%clk 0:01:32]} 21. Qc3 {[%clk 0:01:45]}  c5 {[%clk 0:01:08]} 22. Qxc5 {[%clk 0:01:32]}  h6 {[%clk 0:01:04]} 23. Qxd6 {[%clk 0:01:25]}  Qxd6 {[%clk 0:00:51]} 24. Rxd6 {[%clk 0:01:25]}  Re2 {[%clk 0:00:51]} 25. Rd2 {[%clk 0:01:23]}  Re8 {[%clk 0:00:42]} 26. g3 {[%clk 0:01:23]}  Ne4 {[%clk 0:00:35]} 27. Re2 {[%clk 0:01:21]}  f5 {[%clk 0:00:34]} 28. Nd2 {[%clk 0:01:16]}  Ra8 {[%clk 0:00:29]} 29. Nxe4 {[%clk 0:01:15]}  fxe4 {[%clk 0:00:29]} 30. a4 {[%clk 0:01:04]}  Rc8 {[%clk 0:00:29]} 31. Kf1 {[%clk 0:01:03]}  Kf7 {[%clk 0:00:28]} 32. Ke1 {[%clk 0:01:01]}  Kf6 {[%clk 0:00:29]} 33. Kd2 {[%clk 0:01:02]}  Kf5 {[%clk 0:00:29]} 34. h3 {[%clk 0:00:59]}  g5 {[%clk 0:00:24]} 35. c4 {[%clk 0:00:57]}  Ke5 {[%clk 0:00:15]} 36. Kc2 {[%clk 0:00:57]}  Kd4 {[%clk 0:00:14]} 37. Rd2+ {[%clk 0:00:57]}  Ke5 {[%clk 0:00:15]} 38. a5 {[%clk 0:00:55]}  Ra8 {[%clk 0:00:05]} 39. b4 {[%clk 0:00:52]}  h5 {[%clk 0:00:03]} 40. Rd5+ {[%clk 0:00:50]}  Ke6 {[%clk 0:00:01]} 41. Rxg5 {[%clk 0:00:48]} 1-0


[Site "https://www.chess.com"]

[Event "Titled Tuesday Blitz May 4 2021"]
[White "Navalgund, Niranjan"]
[Black "Grigoryan, Meri"]
[WhiteFideId "5030854"]
[BlackFideId "13300571"]
[WhiteElo "2290"]
[BlackElo "2007"]
[Result "1-0"]
[Round "03"]
[TimeControl "180+1"]
[Date "2021.05.04"]
[WhiteClock "0:01:17"]
[BlackClock "0:00:05"]

1. e4 {[%clk 0:03:00]}  c6 {[%clk 0:02:59]} 2. Nc3 {[%clk 0:02:59]}  d5 {[%clk 0:02:58]} 3. Nf3 {[%clk 0:02:59]}  dxe4 {[%clk 0:02:33]} 4. Nxe4 {[%clk 0:02:58]}  Bf5 {[%clk 0:02:31]} 5. Ng3 {[%clk 0:02:51]}  Bg6 {[%clk 0:02:31]} 6. Bc4 {[%clk 0:02:51]}  Nd7 {[%clk 0:02:26]} 7. h4 {[%clk 0:02:51]}  h5 {[%clk 0:02:11]} 8. Qe2 {[%clk 0:02:50]}  Ngf6 {[%clk 0:02:00]} 9. d3 {[%clk 0:02:45]}  e6 {[%clk 0:01:51]} 10. Bd2 {[%clk 0:02:39]}  Qc7 {[%clk 0:01:37]} 11. O-O-O {[%clk 0:02:20]}  O-O-O {[%clk 0:01:36]} 12. Kb1 {[%clk 0:02:19]}  Bd6 {[%clk 0:01:29]} 13. Ne4 {[%clk 0:02:17]}  Bf4 {[%clk 0:01:11]} 14. Neg5 {[%clk 0:02:03]}  Bxd2 {[%clk 0:00:59]} 15. Qxd2 {[%clk 0:02:04]}  Nd5 {[%clk 0:00:58]} 16. g3 {[%clk 0:01:50]}  Ne5 {[%clk 0:00:53]} 17. Nxe5 {[%clk 0:01:47]}  Qxe5 {[%clk 0:00:53]} 18. Qa5 {[%clk 0:01:48]}  Qb8 {[%clk 0:00:33]} 19. d4 {[%clk 0:01:44]}  Nb6 {[%clk 0:00:32]} 20. Bb3 {[%clk 0:01:43]}  Rd6 {[%clk 0:00:25]} 21. Ka1 {[%clk 0:01:33]}  Rhd8 {[%clk 0:00:24]} 22. c3 {[%clk 0:01:33]}  Nd5 {[%clk 0:00:20]} 23. Rhe1 {[%clk 0:01:29]}  b6 {[%clk 0:00:19]} 24. Qa6+ {[%clk 0:01:29]}  Qb7 {[%clk 0:00:19]} 25. Qe2 {[%clk 0:01:30]}  R6d7 {[%clk 0:00:16]} 26. Nf3 {[%clk 0:01:24]}  Re7 {[%clk 0:00:13]} 27. Ne5 {[%clk 0:01:23]}  Bf5 {[%clk 0:00:11]} 28. Qxh5 {[%clk 0:01:23]}  g6 {[%clk 0:00:09]} 29. Qf3 {[%clk 0:01:23]}  a5 {[%clk 0:00:09]} 30. g4 {[%clk 0:01:22]}  a4 {[%clk 0:00:07]} 31. Bxd5 {[%clk 0:01:21]}  cxd5 {[%clk 0:00:06]} 32. gxf5 {[%clk 0:01:21]}  gxf5 {[%clk 0:00:07]} 33. Qd3 {[%clk 0:01:19]}  b5 {[%clk 0:00:06]} 34. h5 {[%clk 0:01:17]}  Rh8 {[%clk 0:00:05]} 35. Rh1 {[%clk 0:01:17]} 1-0


[Site "https://www.chess.com"]

[Event "Titled Tuesday Blitz May 4 2021"]
[White "Nguyen, Quoc Hy"]
[Black "Chabris, Christopher"]
[WhiteFideId "12410853"]
[BlackFideId "2005263"]
[WhiteElo "1975"]
[BlackElo "2288"]
[Result "0-1"]
[Round "03"]
[TimeControl "180+1"]
[Date "2021.05.04"]
[WhiteClock "0:01:41"]
[BlackClock "0:00:32"]

1. d4 {[%clk 0:03:00]}  d5 {[%clk 0:02:59]} 2. c4 {[%clk 0:03:00]}  c6 {[%clk 0:02:59]} 3. Nc3 {[%clk 0:02:59]}  Nf6 {[%clk 0:02:59]} 4. Bg5 {[%clk 0:02:59]}  dxc4 {[%clk 0:02:56]} 5. e4 {[%clk 0:02:55]}  b5 {[%clk 0:02:56]} 6. e5 {[%clk 0:02:55]}  Nd5 {[%clk 0:02:55]} 7. Nf3 {[%clk 0:02:53]}  Bf5 {[%clk 0:02:51]} 8. a4 {[%clk 0:02:50]}  b4 {[%clk 0:02:31]} 9. Ne2 {[%clk 0:02:42]}  Qa5 {[%clk 0:02:18]} 10. Ng3 {[%clk 0:02:41]}  Bg4 {[%clk 0:01:36]} 11. Bxc4 {[%clk 0:02:33]}  e6 {[%clk 0:01:35]} 12. O-O {[%clk 0:02:31]}  Nd7 {[%clk 0:01:35]} 13. h3 {[%clk 0:02:29]}  Bxf3 {[%clk 0:01:34]} 14. Qxf3 {[%clk 0:02:28]}  N7b6 {[%clk 0:01:31]} 15. Bd3 {[%clk 0:02:28]}  h6 {[%clk 0:01:26]} 16. Bd2 {[%clk 0:02:25]}  Be7 {[%clk 0:01:25]} 17. Rfc1 {[%clk 0:02:23]}  Rc8 {[%clk 0:01:21]} 18. Nh5 {[%clk 0:02:22]}  g6 {[%clk 0:01:18]} 19. Ng3 {[%clk 0:02:20]}  h5 {[%clk 0:01:12]} 20. b3 {[%clk 0:02:15]}  c5 {[%clk 0:01:04]} 21. Bb5+ {[%clk 0:02:10]}  Kf8 {[%clk 0:01:04]} 22. dxc5 {[%clk 0:02:03]}  Rxc5 {[%clk 0:00:54]} 23. Rxc5 {[%clk 0:01:48]}  Bxc5 {[%clk 0:00:54]} 24. Rc1 {[%clk 0:01:49]}  Be7 {[%clk 0:00:41]} 25. Rc7 {[%clk 0:01:41]}  Nxc7 {[%clk 0:00:32]} 0-1


[Site "https://www.chess.com"]

[Event "Titled Tuesday Blitz May 4 2021"]
[White "Nitin, S."]
[Black "Prilleltensky, Matan"]
[WhiteFideId "5018277"]
[BlackFideId "2024810"]
[WhiteElo "2431"]
[BlackElo "2190"]
[Result "1-0"]
[Round "03"]
[TimeControl "180+1"]
[Date "2021.05.04"]
[WhiteClock "0:02:14"]
[BlackClock "0:01:06"]

1. e4 {[%clk 0:03:00]}  c5 {[%clk 0:02:59]} 2. Nf3 {[%clk 0:02:58]}  e6 {[%clk 0:03:00]} 3. d4 {[%clk 0:02:58]}  cxd4 {[%clk 0:03:01]} 4. Nxd4 {[%clk 0:02:59]}  a6 {[%clk 0:03:01]} 5. Nc3 {[%clk 0:02:58]}  Qc7 {[%clk 0:03:01]} 6. Bd3 {[%clk 0:02:58]}  Nf6 {[%clk 0:02:59]} 7. Qe2 {[%clk 0:02:58]}  Bd6 {[%clk 0:02:58]} 8. Nf3 {[%clk 0:02:53]}  Nc6 {[%clk 0:02:56]} 9. Bg5 {[%clk 0:02:51]}  b5 {[%clk 0:02:54]} 10. O-O {[%clk 0:02:48]}  Bb7 {[%clk 0:02:52]} 11. a3 {[%clk 0:02:47]}  Ng4 {[%clk 0:02:35]} 12. h3 {[%clk 0:02:35]}  Nge5 {[%clk 0:01:55]} 13. Rad1 {[%clk 0:02:28]}  O-O {[%clk 0:01:41]} 14. Kh1 {[%clk 0:02:23]}  Rac8 {[%clk 0:01:33]} 15. Bxb5 {[%clk 0:02:22]}  Nxf3 {[%clk 0:01:27]} 16. Qxf3 {[%clk 0:02:22]}  Ne5 {[%clk 0:01:24]} 17. Qe2 {[%clk 0:02:22]}  axb5 {[%clk 0:01:11]} 18. Nxb5 {[%clk 0:02:23]}  Qxc2 {[%clk 0:01:11]} 19. Qxc2 {[%clk 0:02:22]}  Rxc2 {[%clk 0:01:12]} 20. Nxd6 {[%clk 0:02:22]}  Bc6 {[%clk 0:01:07]} 21. b4 {[%clk 0:02:17]}  Ra8 {[%clk 0:01:06]} 22. b5 {[%clk 0:02:14]} 1-0


[Site "https://www.chess.com"]